bitfinex-derivatives/quotes_ETHF0:USTF0_20250524
["timestamp","ask_amount","ask_price","bid_price","bid_amount"]
[1748103071818,2.20179,2549.5,2549.4,2.0778]
[1748103072213,2.20179,2549.5,2549.4,0.6792]
[1748103072414,2.86249,2549.5,2549.4,0.6792]
[1748103072920,0.78428,2549.2,2549.1,1.4113]
[1748103073915,1.3733,2549.3,2549.1,2.19561]
[1748103074420,0.78428,2549.2,2549.1,1.4113]
[1748103076822,0.78431,2549.1,2549.0,0.00614141]
[1748103077021,2.10081,2549.1,2549.0,0.00614141]
[1748103078727,5.30861,2549.1,2549.0,0.00614141]
[1748103081034,6.00171,2549.1,2549.0,0.00614141]
[1748103086027,23.65371,2549.1,2549.0,0.00614141]
[1748103086432,39.09571,2549.1,2549.0,0.00614141]
[1748103087831,6.00171,2549.1,2549.0,0.00614141]
[1748103088130,23.65471,2549.1,2549.0,0.00614141]
[1748103088331,6.00171,2549.1,2549.0,0.00614141]
[1748103088525,6.00171,2549.1,2549.0,1.41584141]
[1748103089029,23.65471,2549.1,2549.0,1.41584141]
[1748103089230,6.00171,2549.1,2549.0,1.41584141]
[1748103089432,22.96161,2549.1,2549.0,1.41584141]
[1748103090529,5.30861,2549.1,2549.0,1.41584141]
[1748103092534,5.30861,2549.1,2549.0,2.20018141]
[1748103092722,5.30861,2549.1,2549.0,1.41584141]
[1748103093235,5.30861,2549.1,2549.0,2.20018141]
[1748103093532,5.30861,2549.1,2549.0,1.41584141]
[1748103093934,3.2078,2549.1,2549.0,2.20018141]
[1748103094733,16.22621,2549.5,2549.1,1.96078]
[1748103094935,0.78423,2549.4,2549.2,1.2859]
[1748103095133,0.78423,2549.4,2549.3,1.44513]
[1748103095331,0.78423,2549.4,2549.3,2.11133]
[1748103095531,0.78423,2549.4,2549.3,1.3271]
[1748103095929,0.78423,2549.4,2549.3,2.613]
[1748103099432,0.00588039,2549.6,2549.5,0.78418]
[1748103099640,0.78418,2549.5,2549.4,2.178]
[1748103099839,17.65888039,2549.6,2549.4,0.7842]
[1748103100133,17.65888039,2549.6,2549.3,2.11134]
[1748103100337,0.7842,2549.5,2549.4,0.7842]
[1748103101537,0.78422,2549.4,2549.3,2.11133]
[1748103101737,0.78421,2549.5,2549.4,0.78421]
[1748103102137,17.65888039,2549.6,2549.3,1.3271]
[1748103102539,0.7842,2549.5,2549.4,0.7842]
[1748103102738,0.00588039,2549.6,2549.5,0.78418]
[1748103103139,0.79003039,2549.6,2549.5,0.78418]
[1748103103340,0.00588039,2549.6,2549.5,0.78418]
[1748103103740,0.00588039,2549.6,2549.5,1.3871196]
[1748103104331,0.00588039,2549.6,2549.5,6.3871196]
[1748103104535,0.00588039,2549.6,2549.5,1.3871196]
[1748103105236,0.79003039,2549.6,2549.5,0.6029396]
[1748103105438,2.79463039,2549.6,2549.5,0.6029396]
[1748103106040,19.73733039,2549.6,2549.5,0.6029396]
[1748103106243,0.78419,2549.5,2549.4,0.7842]
[1748103108237,2.08634039,2549.6,2549.5,0.78419]
[1748103108641,0.00588039,2549.6,2549.1,5.16858]
[1748103109043,0.00588039,2549.6,2549.5,0.78419]
[1748103113841,0.00588039,2549.6,2549.5,2.15529]
[1748103114547,0.00588039,2549.6,2549.5,2.75720002]
[1748103118255,0.00588039,2549.6,2549.5,3.40540002]
[1748103121165,0.00588039,2549.6,2549.5,4.06120002]
[1748103123172,1.40158039,2549.6,2549.5,4.06120002]
[1748103123469,2.18573039,2549.6,2549.5,2.69010002]
[1748103123668,2.18573039,2549.6,2549.5,2.03430002]
[1748103124866,1.40158039,2549.6,2549.5,2.03430002]
[1748103125469,2.18573039,2549.6,2549.5,2.03430002]
[1748103125868,2.18573039,2549.6,2549.5,1.25011002]
[1748103126170,0.78418,2549.5,2549.4,0.7842]
[1748103126365,3.45568,2549.5,2549.2,16.07435533]
[1748103126567,2.6715,2549.5,2549.2,16.07435533]
[1748103126768,1.326,2549.4,2549.3,0.78425]
[1748103126972,1.326,2549.4,2549.2,1.42161533]
[1748103127165,1.326,2549.4,2549.3,0.78425]
[1748103127166,2.11023,2549.4,2549.3,0.78425]
[1748103128872,2.11023,2549.4,2549.1,2.076]
[1748103129065,1.3753,2549.3,2549.2,0.78428]
[1748103129265,1.3753,2549.3,2549.0,5.31291674]
[1748103129568,0.78431,2549.1,2549.0,2.10512674]
[1748103129771,0.7843,2549.2,2549.1,0.78431]
[1748103130674,2.15956,2549.3,2549.2,0.78428]
[1748103131582,0.78428,2549.2,2549.0,0.68344141]
[1748103131768,2.15038,2549.2,2549.0,0.68344141]
[1748103131969,0.78431,2549.1,2549.0,0.68344141]
[1748103132164,2.82281,2549.1,2549.0,0.00614141]
[1748103132370,3.46371,2549.1,2549.0,0.00614141]
[1748103132663,2.6794,2549.1,2549.0,0.79048141]
[1748103132971,2.6794,2549.1,2549.0,1.39353387]
[1748103133271,3.46371,2549.1,2549.0,1.39353387]
[1748103133470,3.46371,2549.1,2549.0,0.60919387]
[1748103133974,3.46371,2549.1,2549.0,1.39353387]
[1748103134376,2.0385,2549.1,2549.0,0.79048141]
[1748103134774,0.6724,2549.5,2549.4,0.78422]
[1748103135171,2.0288,2549.5,2549.4,0.78422]
[1748103135572,0.78425,2549.3,2549.0,3.21394141]
[1748103135773,1.3564,2549.4,2549.0,0.00614141]
[1748103135977,2.14063,2549.4,2549.3,0.78425]
[1748103136176,0.00588039,2549.6,2549.5,0.78419]
[1748103137579,1.36228039,2549.6,2549.5,0.78419]
[1748103141786,2.14643039,2549.6,2549.5,0.78419]
[1748103144185,1.36228039,2549.6,2549.5,0.78419]
[1748103144483,1.35722389,2549.6,2549.5,0.78419]
[1748103145778,0.00082389,2549.6,2549.5,0.78419]
[1748103145984,0.00082389,2549.6,2549.5,2.19039]
[1748103146487,0.00082389,2549.6,2549.5,2.79341025]
[1748103146886,0.00082389,2549.6,2549.5,4.15311025]
[1748103149891,2.10802,2550.1,2550.0,0.78403]
[1748103151093,0.78405,2550.0,2549.9,0.78404]
[1748103151392,0.78407,2549.9,2549.8,0.78409]
[1748103151695,0.6786,2549.9,2549.8,0.78409]
[1748103152389,1.46266,2549.9,2549.8,0.78409]
[1748103152594,2.0444,2549.9,2549.8,0.78409]
[1748103153797,1.3658,2549.9,2549.8,0.78409]
[1748103155902,1.3658,2549.9,2549.8,1.38659204]
[1748103157490,1.46082,2550.1,2550.0,0.78403]
[1748103157691,2.0809,2550.1,2550.0,0.78403]
[1748103158297,2.8649,2550.1,2550.0,0.78403]
[1748103161700,2.8649,2550.1,2549.9,1.3261]
[1748103161999,2.10833,2550.0,2549.9,2.11016]
[1748103162293,2.10833,2550.0,2549.9,0.78406]
[1748103162498,1.3243,2550.0,2549.6,5.8583]
[1748103162698,2.80139,2549.9,2549.8,0.78408]
[1748103163500,2.0173,2549.9,2549.8,0.78408]
[1748103163693,2.80136,2549.9,2549.8,0.78408]
[1748103164195,2.0173,2549.9,2549.6,3.2078]
[1748103164392,0.78414,2549.7,2549.6,0.78414]
[1748103164594,0.78415,2549.6,2549.5,0.588786]
[1748103164799,4.66575,2549.6,2549.5,0.588786]
[1748103165200,6.06665,2549.6,2549.5,0.588786]
[1748103165702,0.78422,2549.4,2549.3,0.78932561]
[1748103166604,0.78422,2549.4,2549.3,0.00509561]
[1748103166798,2.18512,2549.4,2549.3,0.00509561]
[1748103179917,6.4009,2549.4,2548.8,1.4085]
[1748103180209,16.1198,2549.5,2548.5,0.588786]
[1748103180210,0.78446,2548.6,2548.5,2.6701]
[1748103183017,0.78446,2548.6,2548.5,3.45459]
[1748103183314,3.21368039,2548.8,2548.5,2.6701]
[1748103183616,0.00588039,2548.8,2548.7,0.78443]
[1748103183815,0.00588039,2548.8,2548.7,2.08783]
[1748103185314,0.79028039,2548.8,2548.7,2.08783]
[1748103185514,0.00588039,2548.8,2548.7,2.08783]
[1748103186922,0.79028039,2548.8,2548.7,2.08783]
[1748103188127,0.00588039,2548.8,2548.7,2.08783]
[1748103188427,0.79028039,2548.8,2548.7,2.08783]
[1748103189722,0.00588039,2548.8,2548.7,2.08783]
[1748103190725,0.00588039,2548.8,2548.7,2.68899163]
[1748103193930,0.00588039,2548.8,2548.7,3.27777763]
[1748103194831,0.00588039,2548.8,2548.7,2.68899163]
[1748103198231,0.79028039,2548.8,2548.7,2.68899163]
[1748103198833,0.00588039,2548.8,2548.7,2.68899163]
[1748103199831,0.00588039,2548.8,2548.7,3.27859674]
[1748103201136,0.79028039,2548.8,2548.7,3.27859674]
[1748103202534,0.00588039,2548.8,2548.7,3.27859674]
[1748103202939,0.00588039,2548.8,2548.7,2.68899163]
[1748103204734,0.79028039,2548.8,2548.7,2.68899163]
[1748103205538,0.00588039,2548.8,2548.7,2.68899163]
[1748103207338,0.00588039,2548.8,2548.7,3.27859674]
[1748103208340,0.79028039,2548.8,2548.7,3.27859674]
[1748103208733,0.79028039,2548.8,2548.7,1.97519674]
[1748103208933,0.79028039,2548.8,2548.7,1.38559163]
[1748103209640,0.79028039,2548.8,2548.7,2.67719163]
[1748103210439,0.00588039,2548.8,2548.7,2.67719163]
[1748103211539,0.79028039,2548.8,2548.7,2.67719163]
[1748103211732,0.00588039,2548.8,2548.7,2.67719163]
[1748103213041,0.79028039,2548.8,2548.7,2.67719163]
[1748103215039,0.00588039,2548.8,2548.7,2.67719163]
[1748103215241,1.31308039,2548.8,2548.7,2.67719163]
[1748103215932,1.31308039,2548.8,2548.7,2.07603]
[1748103216132,1.31308039,2548.8,2548.7,2.67916826]
[1748103217238,2.09748039,2548.8,2548.7,2.67916826]
[1748103217641,2.17297665,2548.8,2548.7,2.67916826]
[1748103218038,1.38857665,2548.8,2548.7,2.67916826]
[1748103218337,2.17297665,2548.8,2548.7,2.67916826]
[1748103218643,2.09748039,2548.8,2548.7,2.67916826]
[1748103218941,1.31308039,2548.8,2548.7,2.67916826]
[1748103219544,0.00588039,2548.8,2548.7,2.67916826]
[1748103220744,0.00588039,2548.8,2548.7,3.26915698]
[1748103222142,0.79028039,2548.8,2548.7,3.26915698]
[1748103222541,0.00588039,2548.8,2548.7,3.26915698]
[1748103222843,1.30708039,2548.8,2548.7,3.26915698]
[1748103224545,2.09148039,2548.8,2548.7,3.26915698]
[1748103226448,1.30708039,2548.8,2548.7,3.26915698]
[1748103232149,2.09148039,2548.8,2548.7,3.26915698]
[1748103233452,1.30708039,2548.8,2548.7,3.26915698]
[1748103234457,0.00588039,2548.8,2548.7,3.26915698]
[1748103237149,0.00588039,2548.8,2548.7,2.67916826]
[1748103237355,1.94528039,2548.8,2548.7,2.67916826]
[1748103238145,2.72968039,2548.8,2548.7,2.67916826]
[1748103238351,2.72968039,2548.8,2548.7,1.38756826]
[1748103240054,2.72968039,2548.8,2548.7,0.60313826]
[1748103240654,3.43788039,2548.8,2548.7,0.60313826]
[1748103241560,3.43788039,2548.8,2548.7,1.38756826]
[1748103241857,3.43788039,2548.8,2548.7,0.60313826]
[1748103245359,0.78449,2548.5,2548.4,0.78452]
[1748103246153,0.78452,2548.4,2548.3,4.57212389]
[1748103246358,0.78452,2548.4,2548.3,0.00082389]
[1748103246559,2.15272,2548.4,2548.3,0.00082389]
[1748103246759,2.84352,2548.4,2548.3,0.00082389]
[1748103246959,2.84352,2548.4,2548.3,0.60371787]
[1748103248261,2.84352,2548.4,2548.3,1.38826787]
[1748103248659,2.84352,2548.4,2548.3,0.78537389]
[1748103249959,2.059,2548.4,2548.3,0.78537389]
[1748103250163,2.84352,2548.4,2548.3,0.00082389]
[1748103252969,2.84352,2548.4,2548.3,0.78537389]
[1748103253469,2.84352,2548.4,2548.3,0.00082389]
[1748103253667,2.84352,2548.4,2548.3,0.78537389]
[1748103253964,2.84352,2548.4,2548.3,0.00082389]
[1748103255168,0.78464,2548.0,2547.9,2.17695]
[1748103255376,18.44064,2548.0,2547.9,2.17695]
[1748103255570,17.656,2548.0,2547.9,2.17695]
[1748103255764,2.0244,2548.1,2548.0,0.78464]
[1748103255968,19.6804,2548.1,2548.0,2.17694]
[1748103256171,20.46501,2548.1,2548.0,1.3923]
[1748103256374,2.80901,2548.1,2548.0,2.17694]
[1748103256568,20.46501,2548.1,2548.0,2.17694]
[1748103259283,20.46501,2548.1,2548.0,1.3923]
[1748103260282,20.46501,2548.1,2548.0,2.17693]
[1748103260580,20.46501,2548.1,2548.0,1.3923]
[1748103261282,20.46501,2548.1,2548.0,2.17693]
[1748103261476,0.78466,2548.0,2547.9,0.78464]
[1748103261676,2.11046,2548.0,2547.9,0.78464]
[1748103261985,0.78466,2547.9,2547.8,1.3001]
[1748103262182,2.11046,2547.9,2547.8,1.3001]
[1748103262777,2.11046,2547.9,2547.8,2.08479]
[1748103262778,1.3258,2547.9,2547.8,2.08479]
[1748103262978,1.3258,2547.9,2547.8,3.37409]
[1748103263780,2.11046,2547.9,2547.8,3.37409]
[1748103263976,2.11046,2547.9,2547.8,2.5894]
[1748103264181,2.11046,2547.9,2547.8,0.78469]
[1748103264985,0.78469,2547.8,2547.7,3.9925]
[1748103265182,17.55959,2547.8,2547.7,3.2078]
[1748103265385,0.78475,2547.6,2547.5,0.58998872]
[1748103265580,3.99255,2547.6,2547.5,0.58998872]
[1748103265977,4.66795,2547.6,2547.5,0.58998872]
[1748103266381,3.8832,2547.6,2547.2,1.3691]
[1748103266677,3.2078,2547.6,2547.5,0.78478]
[1748103267084,3.2078,2547.6,2547.5,2.86318]
[1748103267479,17.659,2547.8,2547.5,2.0784]
[1748103267679,0.7847,2547.8,2547.7,0.78471]
[1748103268084,0.7847,2547.8,2547.7,1.42751]
[1748103268279,0.7847,2547.8,2547.7,0.6428]
[1748103268477,19.0104,2548.0,2547.7,0.6428]
[1748103268684,0.78467,2547.9,2547.7,2.81742]
[1748103268886,0.7007,2548.1,2547.8,1.3899]
[1748103269184,17.659,2548.0,2547.9,1.44654]
[1748103269883,0.7846,2548.1,2547.9,1.44654]
[1748103270085,17.659,2548.1,2548.0,0.78463]
[1748103270279,7.09489278,2548.6,2548.0,0.6611]
[1748103270479,0.78453,2548.4,2548.2,0.78454]
[1748103270790,0.78453,2548.4,2548.3,0.6619]
[1748103270981,0.78453,2548.4,2548.3,1.323]
[1748103273688,2.1919,2548.5,2548.3,2.10752]
[1748103273890,1.4074,2548.5,2548.4,0.78451]
[1748103274082,19.0664,2548.5,2548.4,0.78451]
[1748103274990,17.659,2548.5,2548.3,1.323]
[1748103275186,3.99226,2548.6,2548.5,0.78448]
[1748103275381,0.78448,2548.5,2548.3,1.323]
[1748103275586,0.78448,2548.5,2548.3,2.10752]
[1748103276180,0.78451,2548.4,2548.3,2.10752]
[1748103281694,0.7845,2548.5,2548.4,0.7845]
[1748103282186,17.658,2548.6,2548.3,1.323]
[1748103282381,15.41788039,2548.8,2548.3,18.67933]
[1748103282382,0.00588039,2548.8,2548.3,18.67933]
[1748103282586,0.00588039,2548.8,2548.7,0.78441]
[1748103288997,3.2078,2549.2,2549.1,0.78429]
[1748103289195,3.99206,2549.2,2549.1,0.78429]
[1748103289498,3.2078,2549.2,2549.1,0.78429]
[1748103289693,3.99198,2549.5,2549.4,0.7842]
[1748103289898,21.64798,2549.5,2549.4,0.7842]
[1748103290691,22.94088,2549.5,2549.4,0.7842]
[1748103291091,5.28488,2549.5,2549.4,0.7842]
[1748103291589,0.7842,2549.4,2549.3,2.16521]
[1748103291790,1.2929,2549.4,2549.3,2.16521]
[1748103292099,2.0771,2549.4,2549.3,2.16521]
[1748103292301,1.2929,2549.4,2549.3,2.16521]
[1748103293105,2.0771,2549.4,2549.3,2.16521]
[1748103293296,1.2929,2549.4,2549.3,2.16521]
[1748103296999,0.6732,2549.6,2549.3,1.381]
[1748103297204,17.653,2549.6,2549.5,0.78414]
[1748103297710,18.43714,2549.6,2549.5,0.78414]
[1748103298006,0.00588039,2549.7,2549.6,0.78414]
[1748103300804,0.00588039,2549.7,2549.6,2.14364]
[1748103301604,0.78414,2549.6,2549.5,2.16475]
[1748103301805,2.78960039,2549.7,2549.6,0.78414]
[1748103302014,0.78415,2549.6,2549.5,0.78415]
[1748103302208,1.309,2549.6,2549.3,1.9563]
[1748103302406,0.7842,2549.4,2549.3,1.43512]
[1748103303011,1.309,2549.4,2549.3,1.43512]
[1748103303414,20.8578,2549.6,2549.5,0.78417]
[1748103303806,22.1668,2549.6,2549.5,0.78417]
[1748103304213,22.95094,2549.6,2549.5,0.78417]
[1748103304413,22.1668,2549.6,2549.5,0.78417]
[1748103304713,4.5168,2549.6,2549.5,0.78417]
[1748103305614,4.5168,2549.6,2549.5,1.42487]
[1748103306014,5.30094,2549.6,2549.5,0.78417]
[1748103307212,4.5168,2549.6,2549.5,0.78417]
[1748103310617,5.30094,2549.6,2549.5,0.78417]
[1748103312019,5.37643626,2549.6,2549.5,0.78417]
[1748103312217,0.78418,2549.5,2549.4,0.78417]
[1748103312418,2.87168,2549.5,2549.4,0.78417]
[1748103312920,2.0875,2549.5,2549.4,0.78417]
[1748103313716,0.78423,2549.3,2549.2,0.78423]
[1748103313913,0.78429,2549.1,2549.0,3.79778872]
[1748103314111,21.64109,2549.1,2549.0,0.58998872]
[1748103314315,26.64109,2549.1,2549.0,0.58998872]
[1748103314519,21.64109,2549.1,2549.0,0.58998872]
[1748103314915,22.28489,2549.1,2549.0,0.58998872]
[1748103315111,27.28489,2549.1,2549.0,0.58998872]
[1748103315922,0.78443,2548.7,2548.6,0.78445]
[1748103316917,2.83713,2548.7,2548.6,0.78445]
[1748103317116,2.83713,2548.7,2548.5,0.79034039]
[1748103317316,0.78445,2548.6,2548.5,0.79034039]
[1748103317516,2.0225,2548.6,2548.5,0.79034039]
[1748103317711,2.80695,2548.6,2548.5,0.79034039]
[1748103318212,2.0225,2548.6,2548.5,0.79034039]
[1748103320928,2.80695,2548.6,2548.5,0.79034039]
[1748103321521,1.3284,2548.6,2548.5,0.79034039]
[1748103321732,3.2078,2548.8,2548.7,0.78442]
[1748103321733,17.653,2548.8,2548.7,0.78442]
[1748103322226,2.0286,2549.2,2549.1,0.78429]
[1748103322527,20.46586,2549.2,2549.1,0.78429]
[1748103323127,0.7843,2549.1,2549.0,0.78431]
[1748103323327,0.78435,2548.9,2548.8,2.19336]
[1748103323625,1.3877,2549.1,2549.0,0.78432]
[1748103323626,2.172,2549.1,2549.0,0.78432]
[1748103324527,1.3877,2549.1,2549.0,0.78432]
[1748103324824,2.17199,2549.1,2549.0,0.78432]
[1748103325920,1.3877,2549.1,2549.0,0.78432]
[1748103326124,17.653,2549.2,2549.1,0.78426]
[1748103326325,18.43726,2549.2,2549.1,0.78426]
[1748103327425,0.78429,2549.1,2549.0,2.17431]
[1748103327629,0.78432,2549.0,2548.9,0.708]
[1748103327826,0.78432,2549.0,2548.9,1.49235]
[1748103328625,0.78432,2549.0,2548.9,0.708]
[1748103329525,0.78432,2549.0,2548.9,0.78435]
[1748103329730,0.78438,2548.8,2548.7,2.1581]
[1748103330019,0.78438,2548.8,2548.7,1.3737]
[1748103330223,0.78438,2548.8,2548.7,2.15812]
[1748103330526,0.78438,2548.8,2548.7,1.3737]
[1748103331529,0.78442,2548.7,2548.5,0.00588039]
[1748103331823,0.78445,2548.6,2548.5,0.00588039]
[1748103332023,1.48265,2548.6,2548.5,0.00588039]
[1748103332726,19.13665,2548.6,2548.5,0.00588039]
[1748103334327,19.21214626,2548.6,2548.5,0.00588039]
[1748103334728,20.60794626,2548.6,2548.5,0.00588039]
[1748103334920,0.7846,2548.1,2548.0,1.975]
[1748103335221,0.7846,2548.1,2548.0,0.6814]
[1748103335427,0.78463,2548.0,2547.9,0.6805]
[1748103335628,0.78469,2547.8,2547.7,1.27138872]
[1748103336128,0.78469,2547.8,2547.7,0.58998872]
[1748103336325,2.16369,2547.8,2547.7,0.58998872]
[1748103337629,0.78472,2547.7,2547.6,3.2078]
[1748103337927,2.16372,2547.7,2547.6,3.2078]
[1748103338128,2.16372,2547.7,2547.5,2.76777]
[1748103338933,2.16372,2547.7,2547.6,0.78475]
[1748103339125,1.379,2547.7,2547.6,0.78475]
[1748103339431,2.16372,2547.7,2547.6,1.46455]
[1748103339929,2.16372,2547.7,2547.6,0.6798]
[1748103340830,2.16372,2547.7,2547.6,1.46455]
[1748103341225,2.16372,2547.7,2547.6,0.6798]
[1748103342130,2.16372,2547.7,2547.6,1.46455]
[1748103342825,1.379,2547.7,2547.6,1.46455]
[1748103343031,0.78471,2547.8,2547.6,1.46455]
[1748103343229,0.78471,2547.8,2547.7,2.12202]
[1748103343731,0.78471,2547.8,2547.7,1.3373]
[1748103344124,2.18271,2547.8,2547.7,1.3373]
[1748103344825,0.78472,2547.7,2547.6,0.6798]
[1748103345019,2.06502,2547.7,2547.6,1.46455]
[1748103345226,2.06502,2547.7,2547.6,0.6798]
[1748103345526,2.06502,2547.7,2547.6,1.46455]
[1748103345727,2.06502,2547.7,2547.6,2.79985]
[1748103347228,2.06502,2547.7,2547.6,2.0151]
[1748103347432,0.78475,2547.6,2547.5,0.6728]
[1748103347729,2.13825,2547.6,2547.5,0.6728]
[1748103348435,2.13825,2547.6,2547.5,1.45758]
[1748103348731,2.13825,2547.6,2547.5,0.6728]
[1748103349129,3.2078,2547.8,2547.7,0.78472]
[1748103349336,2.14403039,2548.0,2547.9,0.78466]
[1748103349528,0.78467,2547.9,2547.8,0.78467]
[1748103350233,0.78469,2547.8,2547.7,1.4808]
[1748103351829,0.78467,2547.9,2547.8,0.78467]
[1748103352036,0.78469,2547.8,2547.7,0.6961]
[1748103352737,1.3329,2547.9,2547.5,3.8806]
[1748103352738,0.78475,2547.6,2547.5,3.8806]
[1748103352936,0.78475,2547.6,2547.5,2.09887]
[1748103353238,0.78475,2547.6,2547.5,2.09888]
[1748103354138,0.78475,2547.6,2547.5,1.3141]
[1748103354335,0.78475,2547.6,2547.5,2.09888]
[1748103354833,0.78475,2547.6,2547.5,1.3141]
[1748103355032,0.78475,2547.6,2547.5,2.09888]
[1748103356237,0.78475,2547.6,2547.5,1.3141]
[1748103359141,19.6229,2547.6,2547.2,3.2078]
[1748103359344,0.78493,2547.1,2547.0,0.78493]
[1748103359742,0.78488,2547.2,2547.1,0.78491]
[1748103360139,3.2078,2547.3,2547.2,0.78488]
[1748103360338,0.78485,2547.3,2547.2,0.78486]
[1748103360832,17.662,2547.4,2547.2,0.78486]
[1748103360833,17.662,2547.4,2547.2,1.3593]
[1748103361029,0.78485,2547.3,2547.2,1.3593]
[1748103361934,17.662,2547.4,2547.2,2.14418]
[1748103362138,0.78485,2547.3,2547.2,1.3593]
[1748103363143,2.16005,2547.3,2547.2,0.7101]
[1748103363337,2.86605,2547.3,2547.2,0.7101]
[1748103364247,2.86605,2547.3,2547.2,2.0706]
[1748103365343,17.663,2547.4,2547.2,2.0706]
[1748103365544,18.44782,2547.4,2547.3,1.3605]
[1748103365744,0.78482,2547.4,2547.3,2.79645]
[1748103365952,0.78482,2547.4,2547.3,2.0116]
[1748103368346,2.18792,2547.4,2547.3,2.0116]
[1748103371254,2.18792,2547.4,2547.3,2.79645]
[1748103371844,19.85192,2547.4,2547.3,2.79645]
[1748103372350,19.85192,2547.4,2547.3,2.0116]
[1748103372847,0.78485,2547.3,2547.2,0.78485]
[1748103373052,1.9934,2547.3,2547.0,0.78492]
[1748103373248,0.78491,2547.1,2547.0,2.13942]
[1748103374452,2.10671,2547.2,2547.1,0.78491]
[1748103374651,2.10671,2547.2,2547.1,2.82801]
[1748103374845,0.78492,2547.1,2547.0,0.60236336]
[1748103375048,2.10882,2547.1,2547.0,0.60236336]
[1748103376046,2.10882,2547.1,2547.0,1.88756336]
[1748103376650,2.10882,2547.1,2547.0,2.67250336]
[1748103377256,2.10882,2547.1,2547.0,1.88756336]
[1748103377449,2.10882,2547.1,2547.0,0.60236336]
[1748103377851,2.10882,2547.1,2547.0,1.38730336]
[1748103378549,1.3239,2547.1,2547.0,1.38730336]
[1748103378754,17.664,2547.2,2547.1,0.78491]
[1748103379052,17.664,2547.2,2547.1,2.09551]
[1748103379253,2.85117,2547.3,2547.2,0.78488]
[1748103379552,20.51517,2547.3,2547.2,2.09548]
[1748103379755,3.2078,2547.5,2547.4,0.78482]
[1748103379956,2.0816,2547.8,2547.7,0.78472]
[1748103380149,21.02047,2547.8,2547.4,3.2078]
[1748103380350,0.78488,2547.2,2547.1,0.78489]
[1748103380549,0.78488,2547.2,2547.1,2.09549]
[1748103380749,0.78488,2547.2,2547.1,2.68547872]
[1748103381243,0.78488,2547.2,2547.1,1.90058872]
[1748103381449,0.78487,2547.3,2547.1,1.90058872]
[1748103381656,0.78487,2547.3,2547.2,1.3289]
[1748103382151,0.78487,2547.3,2547.2,0.60255188]
[1748103382351,2.14907,2547.3,2547.2,0.60255188]
[1748103383556,0.78491,2547.1,2547.0,1.3289]
[1748103384048,0.78491,2547.1,2547.0,2.11384]
[1748103384251,0.78491,2547.1,2547.0,1.3289]
[1748103384555,0.78491,2547.1,2547.0,2.11384]
[1748103384755,18.44986,2547.3,2547.0,1.3289]
[1748103384962,0.78488,2547.2,2547.1,2.10809]
[1748103385154,1.4187,2547.4,2547.0,0.6028498]
[1748103385454,17.665,2547.5,2547.2,3.2078]
[1748103385649,0.78483,2547.4,2547.3,1.48655]
[1748103385850,0.78483,2547.4,2547.3,0.7017]
[1748103386049,2.20353,2547.4,2547.3,0.7017]
[1748103386356,0.78491,2547.1,2547.0,0.6028498]
[1748103386654,0.78491,2547.1,2547.0,0.58998872]
[1748103387653,2.07891,2547.1,2547.0,0.58998872]
[1748103388358,2.07891,2547.1,2547.0,1.38810439]
[1748103388557,2.07891,2547.1,2547.0,0.60316439]
[1748103389759,19.74391,2547.1,2547.0,0.60316439]
[1748103389962,19.74391,2547.1,2546.8,0.785]
[1748103389963,0.78497,2546.9,2546.8,0.785]
[1748103390351,0.785,2546.8,2546.7,0.78501]
[1748103390553,2.0867,2546.8,2546.7,0.78501]
[1748103390961,2.0867,2546.8,2546.7,1.38803548]
[1748103391262,1.3017,2546.8,2546.7,1.38803548]
[1748103391460,2.0867,2546.8,2546.7,1.38803548]
[1748103393554,24.8745,2546.8,2545.7,2.27728099]
[1748103393767,3.2078,2545.4,2544.6,5.26436799]
[1748103393961,3.2078,2544.9,2543.8,1.9648]
[1748103394263,3.2078,2544.3,2544.1,0.77841326]
[1748103394466,3.2078,2544.6,2544.5,0.78571]
[1748103395166,3.2078,2544.9,2544.4,17.173]
[1748103395360,3.2078,2544.9,2544.8,0.78562]
[1748103395560,0.00589206,2545.3,2544.4,3.2078]
[1748103395862,0.00589206,2545.3,2545.0,0.78554]
[1748103396155,0.00589206,2545.3,2544.5,17.173]
[1748103396156,0.00589206,2545.3,2545.2,0.78549]
[1748103396761,0.00589206,2545.3,2545.2,5.78549]
[1748103397155,0.00589206,2545.3,2545.2,0.78549]
[1748103397763,0.00589206,2545.3,2545.2,5.78549]
[1748103397954,0.00589206,2545.3,2545.2,0.78549]
[1748103398561,0.00589206,2545.3,2545.2,5.78549]
[1748103398758,3.2078,2546.1,2545.9,0.78526]
[1748103399952,3.2078,2546.1,2546.0,0.78525]
[1748103400152,17.671,2546.2,2546.1,0.78522]
[1748103400355,2.10889206,2546.3,2545.5,1.96351]
[1748103400556,2.10889206,2546.3,2546.1,0.7852]
[1748103400966,2.10889206,2546.3,2546.2,0.78518]
[1748103401156,0.00589206,2546.3,2546.2,0.78518]
[1748103402055,0.00589206,2546.3,2546.1,0.7852]
[1748103402262,0.00589206,2546.3,2546.2,0.78518]
[1748103404963,0.00589206,2546.3,2546.2,2.13868]
[1748103405771,0.00589206,2546.3,2546.2,5.34648]
[1748103406361,0.00589206,2546.3,2546.2,10.34648]
[1748103408765,3.2078,2547.0,2546.3,1.96285]
[1748103408963,3.2078,2547.0,2546.9,0.78494]
[1748103410167,3.99274,2547.0,2546.9,0.78494]
[1748103410978,3.2078,2547.0,2546.9,0.78494]
[1748103411175,3.99274,2547.0,2546.9,0.78494]
[1748103413173,3.2078,2547.0,2546.9,0.78494]
[1748103414877,0.00589206,2547.2,2547.1,0.78491]
[1748103415267,2.06e-06,2547.2,2547.1,0.78491]
[1748103415477,2.06e-06,2547.2,2547.1,2.12381]
[1748103416275,2.31990314,2547.7,2547.6,0.78475]
[1748103416480,0.78465,2548.0,2547.8,0.78467]
[1748103416773,0.78465,2548.0,2547.9,1.3265]
[1748103416977,3.8532,2548.2,2547.9,2.11114]